[Event "Titled Tuesday Blitz July 25 Early 2023"]
[White "Skliarov, Viktor"]
[Black "Michalczak, Thomas"]
[WhiteFideId "14106736"]
[BlackFideId "4622634"]
[WhiteElo "2652"]
[BlackElo "2480"]
[Result "1-0"]
[Round "10"]
[TimeControl "180+2"]
[Date "2023.07.25"]
[WhiteClock "0:01:04"]
[BlackClock "0:00:46"]
[Board "85"]

1. e4 {[%clk 0:03:00]}  e5 {[%clk 0:02:59]} 2. Nc3 {[%clk 0:03:01]}  Nf6 {[%clk 0:02:59]} 3. Bc4 {[%clk 0:03:01]}  Nxe4 {[%clk 0:02:57]} 4. Qh5 {[%clk 0:03:00]}  Nd6 {[%clk 0:02:57]} 5. Bb3 {[%clk 0:03:01]}  Be7 {[%clk 0:02:47]} 6. Qxe5 {[%clk 0:03:00]}  O-O {[%clk 0:02:45]} 7. d4 {[%clk 0:03:00]}  Nc6 {[%clk 0:02:37]} 8. Qf4 {[%clk 0:03:00]}  Bf6 {[%clk 0:02:30]} 9. Nge2 {[%clk 0:03:00]}  Na5 {[%clk 0:02:22]} 10. Nd5 {[%clk 0:02:52]}  Be7 {[%clk 0:02:06]} 11. Nxe7+ {[%clk 0:02:43]}  Qxe7 {[%clk 0:02:05]} 12. Bd5 {[%clk 0:02:44]}  Re8 {[%clk 0:01:51]} 13. Bf3 {[%clk 0:02:42]}  Nc6 {[%clk 0:01:29]} 14. O-O {[%clk 0:02:36]}  b6 {[%clk 0:01:29]} 15. b3 {[%clk 0:02:28]}  Bb7 {[%clk 0:01:27]} 16. c4 {[%clk 0:02:20]}  Nb4 {[%clk 0:01:23]} 17. Bxb7 {[%clk 0:02:01]}  Nxb7 {[%clk 0:01:24]} 18. Ng3 {[%clk 0:02:01]}  Nd6 {[%clk 0:01:16]} 19. Qg4 {[%clk 0:01:43]}  Nc2 {[%clk 0:01:06]} 20. Rb1 {[%clk 0:01:43]}  Ne4 {[%clk 0:01:03]} 21. Bh6 {[%clk 0:01:28]}  g6 {[%clk 0:01:02]} 22. d5 {[%clk 0:01:09]}  Nxg3 {[%clk 0:00:49]} 23. hxg3 {[%clk 0:01:07]}  Ne3 {[%clk 0:00:46]} 24. Bxe3 {[%clk 0:01:04]} 1-0


[Site "https://www.chess.com"]

[Event "Titled Tuesday Blitz July 25 Early 2023"]
[White "Erzhanov, Arman"]
[Black "Trifan, Andrei Ioan"]
[WhiteFideId "4138821"]
[BlackFideId "12967068"]
[WhiteElo "2475"]
[BlackElo "2565"]
[Result "0-1"]
[Round "10"]
[TimeControl "180+2"]
[Date "2023.07.25"]
[WhiteClock "0:01:14"]
[BlackClock "0:00:29"]
[Board "87"]

1. e4 {[%clk 0:03:00]}  e5 {[%clk 0:02:59]} 2. Nf3 {[%clk 0:03:00]}  Nc6 {[%clk 0:03:00]} 3. Bb5 {[%clk 0:03:01]}  a6 {[%clk 0:02:59]} 4. Bxc6 {[%clk 0:03:01]}  dxc6 {[%clk 0:03:00]} 5. Nc3 {[%clk 0:03:02]}  f6 {[%clk 0:02:57]} 6. d4 {[%clk 0:03:02]}  exd4 {[%clk 0:02:56]} 7. Nxd4 {[%clk 0:03:03]}  c5 {[%clk 0:02:51]} 8. Nde2 {[%clk 0:03:03]}  Qxd1+ {[%clk 0:02:51]} 9. Nxd1 {[%clk 0:03:04]}  Bd6 {[%clk 0:02:49]} 10. Bf4 {[%clk 0:03:05]}  Ne7 {[%clk 0:02:46]} 11. Ne3 {[%clk 0:03:04]}  Be6 {[%clk 0:02:46]} 12. O-O-O {[%clk 0:03:02]}  O-O-O {[%clk 0:02:46]} 13. Rd2 {[%clk 0:02:57]}  Bxf4 {[%clk 0:02:36]} 14. Nxf4 {[%clk 0:02:57]}  Rxd2 {[%clk 0:02:37]} 15. Kxd2 {[%clk 0:02:57]}  Rd8+ {[%clk 0:02:38]} 16. Ke2 {[%clk 0:02:57]}  Bf7 {[%clk 0:02:37]} 17. f3 {[%clk 0:02:53]}  Nc6 {[%clk 0:02:37]} 18. b3 {[%clk 0:02:43]}  Nd4+ {[%clk 0:02:34]} 19. Ke1 {[%clk 0:02:43]}  c6 {[%clk 0:02:28]} 20. h4 {[%clk 0:02:41]}  Kc7 {[%clk 0:02:23]} 21. h5 {[%clk 0:02:40]}  h6 {[%clk 0:02:22]} 22. Rh3 {[%clk 0:02:41]}  Ne6 {[%clk 0:02:10]} 23. Nxe6+ {[%clk 0:02:34]}  Bxe6 {[%clk 0:02:11]} 24. Rg3 {[%clk 0:02:34]}  Rd7 {[%clk 0:02:11]} 25. f4 {[%clk 0:02:24]}  Re7 {[%clk 0:01:56]} 26. Kf2 {[%clk 0:02:21]}  Kb6 {[%clk 0:01:56]} 27. Kf3 {[%clk 0:02:19]}  Ka5 {[%clk 0:01:54]} 28. c3 {[%clk 0:02:18]}  b5 {[%clk 0:01:46]} 29. f5 {[%clk 0:02:18]}  Bf7 {[%clk 0:01:39]} 30. Kf4 {[%clk 0:02:17]}  Bxh5 {[%clk 0:01:38]} 31. Ng4 {[%clk 0:02:05]}  Bxg4 {[%clk 0:01:36]} 32. Rxg4 {[%clk 0:02:04]}  c4 {[%clk 0:01:24]} 33. Rg3 {[%clk 0:01:57]}  cxb3 {[%clk 0:01:23]} 34. axb3 {[%clk 0:01:57]}  Rd7 {[%clk 0:01:16]} 35. e5 {[%clk 0:01:55]}  fxe5+ {[%clk 0:01:17]} 36. Kxe5 {[%clk 0:01:56]}  c5 {[%clk 0:01:15]} 37. Ke6 {[%clk 0:01:56]}  Rc7 {[%clk 0:01:11]} 38. Kd6 {[%clk 0:01:56]}  Kb6 {[%clk 0:01:11]} 39. Kd5 {[%clk 0:01:41]}  Ka5 {[%clk 0:00:21]} 40. Rg6 {[%clk 0:01:39]}  c4 {[%clk 0:00:20]} 41. b4+ {[%clk 0:01:32]}  Ka4 {[%clk 0:00:20]} 42. Rxa6+ {[%clk 0:01:32]}  Kb3 {[%clk 0:00:21]} 43. Kd4 {[%clk 0:01:26]}  Rd7+ {[%clk 0:00:20]} 44. Kc5 {[%clk 0:01:26]}  Kxc3 {[%clk 0:00:21]} 45. Ra3+ {[%clk 0:01:23]}  Kb2 {[%clk 0:00:21]} 46. Rf3 {[%clk 0:01:21]}  c3 {[%clk 0:00:21]} 47. Kxb5 {[%clk 0:01:22]}  c2 {[%clk 0:00:21]} 48. Rf1 {[%clk 0:01:22]}  Rf7 {[%clk 0:00:18]} 49. g4 {[%clk 0:01:19]}  h5 {[%clk 0:00:18]} 50. gxh5 {[%clk 0:01:13]}  c1=Q {[%clk 0:00:18]} 51. Rxc1 {[%clk 0:01:13]}  Kxc1 {[%clk 0:00:19]} 52. Kc6 {[%clk 0:01:12]}  Rxf5 {[%clk 0:00:20]} 53. b5 {[%clk 0:01:13]}  Rxh5 {[%clk 0:00:20]} 54. b6 {[%clk 0:01:13]}  Rh8 {[%clk 0:00:21]} 55. b7 {[%clk 0:01:14]}  g5 {[%clk 0:00:21]} 56. Kc7 {[%clk 0:01:15]}  g4 {[%clk 0:00:22]} 57. b8=Q {[%clk 0:01:16]}  Rxb8 {[%clk 0:00:22]} 58. Kxb8 {[%clk 0:01:17]}  g3 {[%clk 0:00:23]} 59. Kc7 {[%clk 0:01:18]}  g2 {[%clk 0:00:24]} 60. Kd6 {[%clk 0:01:17]}  g1=Q {[%clk 0:00:25]} 61. Ke5 {[%clk 0:01:18]}  Qd1 {[%clk 0:00:25]} 62. Ke4 {[%clk 0:01:19]}  Qd2 {[%clk 0:00:26]} 63. Ke5 {[%clk 0:01:19]}  Kc2 {[%clk 0:00:27]} 64. Ke4 {[%clk 0:01:19]}  Kc3 {[%clk 0:00:28]} 65. Ke5 {[%clk 0:01:14]}  Kc4 {[%clk 0:00:29]} 0-1


[Site "https://www.chess.com"]

[Event "Titled Tuesday Blitz July 25 Early 2023"]
[White "Eynullayev, Atilla"]
[Black "Estrada Nieto, Julian"]
[WhiteFideId "13413570"]
[BlackFideId "5101018"]
[WhiteElo "2539"]
[BlackElo "2467"]
[Result "0-1"]
[Round "10"]
[TimeControl "180+2"]
[Date "2023.07.25"]
[WhiteClock "0:00:24"]
[BlackClock "0:00:08"]
[Board "88"]

1. d4 {[%clk 0:03:00]}  d5 {[%clk 0:02:59]} 2. c4 {[%clk 0:03:01]}  dxc4 {[%clk 0:02:58]} 3. Nf3 {[%clk 0:03:00]}  Nf6 {[%clk 0:02:58]} 4. e3 {[%clk 0:03:00]}  e6 {[%clk 0:02:58]} 5. Bxc4 {[%clk 0:03:01]}  a6 {[%clk 0:02:59]} 6. O-O {[%clk 0:03:01]}  c5 {[%clk 0:02:59]} 7. dxc5 {[%clk 0:03:02]}  Bxc5 {[%clk 0:02:58]} 8. Qxd8+ {[%clk 0:03:01]}  Kxd8 {[%clk 0:02:59]} 9. Rd1+ {[%clk 0:03:00]}  Ke7 {[%clk 0:02:59]} 10. Nbd2 {[%clk 0:03:01]}  Nbd7 {[%clk 0:02:54]} 11. Be2 {[%clk 0:03:01]}  b6 {[%clk 0:02:46]} 12. Nb3 {[%clk 0:03:01]}  Bd6 {[%clk 0:02:44]} 13. Bd2 {[%clk 0:02:40]}  Bb7 {[%clk 0:02:43]} 14. Bc3 {[%clk 0:02:39]}  Rhg8 {[%clk 0:02:27]} 15. Nfd4 {[%clk 0:02:34]}  Ne4 {[%clk 0:02:25]} 16. Be1 {[%clk 0:02:35]}  Rac8 {[%clk 0:02:21]} 17. Bf3 {[%clk 0:02:33]}  Ne5 {[%clk 0:02:16]} 18. Be2 {[%clk 0:02:33]}  Nc4 {[%clk 0:02:13]} 19. f3 {[%clk 0:02:30]}  Nf6 {[%clk 0:02:10]} 20. Bxc4 {[%clk 0:02:20]}  Rxc4 {[%clk 0:02:10]} 21. Bg3 {[%clk 0:02:19]}  Bxg3 {[%clk 0:02:04]} 22. hxg3 {[%clk 0:02:19]}  Rgc8 {[%clk 0:02:04]} 23. Kf2 {[%clk 0:02:17]}  g6 {[%clk 0:02:01]} 24. Rac1 {[%clk 0:02:15]}  e5 {[%clk 0:01:58]} 25. Rxc4 {[%clk 0:02:09]}  Rxc4 {[%clk 0:01:57]} 26. Ne2 {[%clk 0:02:10]}  h5 {[%clk 0:01:51]} 27. Nc3 {[%clk 0:02:10]}  Rc8 {[%clk 0:01:35]} 28. e4 {[%clk 0:02:10]}  Nd7 {[%clk 0:01:28]} 29. Ke2 {[%clk 0:01:56]}  Nc5 {[%clk 0:01:28]} 30. Nd2 {[%clk 0:01:56]}  Ne6 {[%clk 0:01:18]} 31. Nb3 {[%clk 0:01:56]}  Nc5 {[%clk 0:01:18]} 32. Nxc5 {[%clk 0:01:46]}  Rxc5 {[%clk 0:01:17]} 33. Ke3 {[%clk 0:01:46]}  b5 {[%clk 0:01:14]} 34. Kd3 {[%clk 0:01:46]}  a5 {[%clk 0:01:10]} 35. b3 {[%clk 0:01:20]}  b4 {[%clk 0:01:06]} 36. Na4 {[%clk 0:01:21]}  Ba6+ {[%clk 0:01:02]} 37. Kd2 {[%clk 0:01:19]}  Rc6 {[%clk 0:01:00]} 38. Nb2 {[%clk 0:01:13]}  Rd6+ {[%clk 0:00:52]} 39. Ke1 {[%clk 0:01:13]}  Rxd1+ {[%clk 0:00:52]} 40. Nxd1 {[%clk 0:01:13]}  Kd6 {[%clk 0:00:50]} 41. Ne3 {[%clk 0:01:14]}  Kc5 {[%clk 0:00:45]} 42. Kd2 {[%clk 0:01:14]}  Bb5 {[%clk 0:00:41]} 43. Ke1 {[%clk 0:01:09]}  Kd4 {[%clk 0:00:39]} 44. Kd2 {[%clk 0:01:09]}  Bd3 {[%clk 0:00:34]} 45. Nd5 {[%clk 0:01:02]}  Bb1 {[%clk 0:00:32]} 46. Nb6 {[%clk 0:00:56]}  Bxa2 {[%clk 0:00:20]} 47. Kc2 {[%clk 0:00:56]}  Ke3 {[%clk 0:00:19]} 48. Nc4+ {[%clk 0:00:47]}  Kf2 {[%clk 0:00:19]} 49. Nxe5 {[%clk 0:00:48]}  Kxg2 {[%clk 0:00:19]} 50. Nxf7 {[%clk 0:00:48]}  Kxg3 {[%clk 0:00:19]} 51. Ng5 {[%clk 0:00:48]}  Kf4 {[%clk 0:00:18]} 52. Nh3+ {[%clk 0:00:31]}  Kxf3 {[%clk 0:00:18]} 53. e5 {[%clk 0:00:31]}  a4 {[%clk 0:00:18]} 54. bxa4 {[%clk 0:00:32]}  Ke4 {[%clk 0:00:11]} 55. Kb2 {[%clk 0:00:26]}  Bc4 {[%clk 0:00:11]} 56. e6 {[%clk 0:00:17]}  Bxe6 {[%clk 0:00:10]} 57. Ng5+ {[%clk 0:00:17]}  Kd5 {[%clk 0:00:10]} 58. a5 {[%clk 0:00:17]}  Bc8 {[%clk 0:00:09]} 59. Kb3 {[%clk 0:00:18]}  Kc5 {[%clk 0:00:08]} 60. Ne4+ {[%clk 0:00:17]}  Kb5 {[%clk 0:00:08]} 61. Nd6+ {[%clk 0:00:18]}  Kxa5 {[%clk 0:00:08]} 62. Nxc8 {[%clk 0:00:19]}  h4 {[%clk 0:00:08]} 63. Nd6 {[%clk 0:00:20]}  g5 {[%clk 0:00:08]} 64. Ne4 {[%clk 0:00:20]}  g4 {[%clk 0:00:07]} 65. Nf2 {[%clk 0:00:20]}  g3 {[%clk 0:00:07]} 66. Nh3 {[%clk 0:00:20]}  g2 {[%clk 0:00:07]} 67. Ng1 {[%clk 0:00:19]}  Kb5 {[%clk 0:00:07]} 68. Kc2 {[%clk 0:00:19]}  Kc4 {[%clk 0:00:07]} 69. Kb2 {[%clk 0:00:20]}  Kd4 {[%clk 0:00:06]} 70. Kb3 {[%clk 0:00:20]}  Ke3 {[%clk 0:00:07]} 71. Kxb4 {[%clk 0:00:21]}  Kf2 {[%clk 0:00:07]} 72. Nh3+ {[%clk 0:00:22]}  Kg3 {[%clk 0:00:07]} 73. Ng1 {[%clk 0:00:22]}  h3 {[%clk 0:00:08]} 74. Ne2+ {[%clk 0:00:22]}  Kf2 {[%clk 0:00:08]} 75. Nf4 {[%clk 0:00:23]}  h2 {[%clk 0:00:08]} 76. Nh3+ {[%clk 0:00:23]}  Kf1 {[%clk 0:00:08]} 77. Kc3 {[%clk 0:00:23]}  g1=Q {[%clk 0:00:09]} 78. Kd3 {[%clk 0:00:24]}  Qg2 {[%clk 0:00:08]} 79. Nf4 {[%clk 0:00:24]}  Qf3+ {[%clk 0:00:08]} 80. Kd4 {[%clk 0:00:24]}  Qxf4+ {[%clk 0:00:08]} 0-1


[Site "https://www.chess.com"]

[Event "Titled Tuesday Blitz July 25 Early 2023"]
[White "Terletsky, Oleg"]
[Black "Dinu, Dumitru-Daniel"]
[WhiteFideId "14116774"]
[BlackFideId "1208403"]
[WhiteElo "2519"]
[BlackElo "2464"]
[Result "0-1"]
[Round "10"]
[TimeControl "180+2"]
[Date "2023.07.25"]
[WhiteClock "0:00:05"]
[BlackClock "0:01:03"]
[Board "90"]

1. e4 {[%clk 0:03:00]}  c5 {[%clk 0:02:59]} 2. Nf3 {[%clk 0:03:01]}  Nc6 {[%clk 0:02:58]} 3. d4 {[%clk 0:03:01]}  cxd4 {[%clk 0:02:58]} 4. Nxd4 {[%clk 0:03:02]}  Nf6 {[%clk 0:02:59]} 5. Nc3 {[%clk 0:03:02]}  e5 {[%clk 0:02:58]} 6. Ndb5 {[%clk 0:03:02]}  d6 {[%clk 0:02:58]} 7. Bg5 {[%clk 0:03:01]}  a6 {[%clk 0:02:58]} 8. Na3 {[%clk 0:03:02]}  b5 {[%clk 0:02:58]} 9. Nd5 {[%clk 0:03:02]}  Be7 {[%clk 0:02:58]} 10. Bxf6 {[%clk 0:03:03]}  Bxf6 {[%clk 0:02:58]} 11. c3 {[%clk 0:03:03]}  Ne7 {[%clk 0:02:59]} 12. Nxf6+ {[%clk 0:03:02]}  gxf6 {[%clk 0:02:59]} 13. Nc2 {[%clk 0:03:00]}  Bb7 {[%clk 0:02:59]} 14. Bd3 {[%clk 0:02:58]}  d5 {[%clk 0:03:00]} 15. exd5 {[%clk 0:02:55]}  Qxd5 {[%clk 0:02:56]} 16. Ne3 {[%clk 0:02:53]}  Qc6 {[%clk 0:02:50]} 17. a4 {[%clk 0:02:42]}  O-O-O {[%clk 0:02:32]} 18. axb5 {[%clk 0:02:39]}  axb5 {[%clk 0:02:32]} 19. Qe2 {[%clk 0:02:35]}  Nd5 {[%clk 0:02:14]} 20. Bxb5 {[%clk 0:02:16]}  Qb6 {[%clk 0:02:12]} 21. Nxd5 {[%clk 0:01:43]}  Rxd5 {[%clk 0:02:13]} 22. Ba6 {[%clk 0:01:34]}  Rg8 {[%clk 0:01:37]} 23. Bxb7+ {[%clk 0:01:26]}  Qxb7 {[%clk 0:01:37]} 24. f3 {[%clk 0:00:30]}  Rgd8 {[%clk 0:01:20]} 25. O-O {[%clk 0:00:24]}  Rd2 {[%clk 0:01:17]} 26. Qc4+ {[%clk 0:00:24]}  Kb8 {[%clk 0:01:16]} 27. Ra4 {[%clk 0:00:15]}  Rxb2 {[%clk 0:01:14]} 28. Rfa1 {[%clk 0:00:14]}  Qb6+ {[%clk 0:01:08]} 29. Kh1 {[%clk 0:00:12]}  Rb1+ {[%clk 0:01:08]} 30. Qf1 {[%clk 0:00:07]}  Rxf1+ {[%clk 0:01:06]} 31. Rxf1 {[%clk 0:00:05]}  Kc7 {[%clk 0:01:03]} 0-1


[Site "https://www.chess.com"]

[Event "Titled Tuesday Blitz July 25 Early 2023"]
[White "To, Nhat Minh"]
[Black "Rosh Jain"]
[WhiteFideId "729019"]
[BlackFideId "25789465"]
[WhiteElo "2518"]
[BlackElo "2445"]
[Result "0-1"]
[Round "10"]
[TimeControl "180+2"]
[Date "2023.07.25"]
[WhiteClock "0:00:01"]
[BlackClock "0:02:12"]
[Board "91"]

1. e4 {[%clk 0:02:56]}  c5 {[%clk 0:02:59]} 2. Nf3 {[%clk 0:02:55]}  d6 {[%clk 0:02:59]} 3. d4 {[%clk 0:02:56]}  cxd4 {[%clk 0:03:00]} 4. Nxd4 {[%clk 0:02:57]}  Nf6 {[%clk 0:03:00]} 5. Nc3 {[%clk 0:02:57]}  a6 {[%clk 0:03:00]} 6. Bc4 {[%clk 0:02:45]}  e6 {[%clk 0:02:57]} 7. Bb3 {[%clk 0:02:45]}  b5 {[%clk 0:02:56]} 8. a3 {[%clk 0:02:39]}  Be7 {[%clk 0:02:56]} 9. Be3 {[%clk 0:02:35]}  Bb7 {[%clk 0:02:53]} 10. f3 {[%clk 0:02:35]}  O-O {[%clk 0:02:53]} 11. Qe2 {[%clk 0:02:35]}  Nbd7 {[%clk 0:02:52]} 12. O-O-O {[%clk 0:02:35]}  Qc7 {[%clk 0:02:50]} 13. Kb1 {[%clk 0:02:32]}  Nc5 {[%clk 0:02:51]} 14. g4 {[%clk 0:02:31]}  Rab8 {[%clk 0:02:50]} 15. h4 {[%clk 0:02:28]}  Ba8 {[%clk 0:02:50]} 16. h5 {[%clk 0:02:22]}  Nxb3 {[%clk 0:02:48]} 17. cxb3 {[%clk 0:02:15]}  b4 {[%clk 0:02:47]} 18. axb4 {[%clk 0:02:15]}  Rxb4 {[%clk 0:02:48]} 19. g5 {[%clk 0:02:11]}  Nd7 {[%clk 0:02:47]} 20. g6 {[%clk 0:02:09]}  e5 {[%clk 0:02:42]} 21. Nf5 {[%clk 0:02:04]}  Bf6 {[%clk 0:02:35]} 22. gxh7+ {[%clk 0:00:48]}  Kxh7 {[%clk 0:02:34]} 23. Rxd6 {[%clk 0:00:40]}  Rxb3 {[%clk 0:02:33]} 24. Rxf6 {[%clk 0:00:06]}  Nxf6 {[%clk 0:02:31]} 25. Rg1 {[%clk 0:00:03]}  Qxc3 {[%clk 0:02:20]} 26. Rxg7+ {[%clk 0:00:02]}  Kh8 {[%clk 0:02:19]} 27. Bg5 {[%clk 0:00:03]}  Rfb8 {[%clk 0:02:12]} 28. Bxf6 {[%clk 0:00:01]}  Rxb2+ {[%clk 0:02:12]} 29. Ka1 {[%clk 0:00:02]}  Rb1+ {[%clk 0:02:11]} 30. Ka2 {[%clk 0:00:01]}  Qa1# {[%clk 0:02:12]} 0-1


[Site "https://www.chess.com"]

[Event "Titled Tuesday Blitz July 25 Early 2023"]
[White "Tobak, Mikhail"]
[Black "Shturman, Arseniy"]
[WhiteFideId "14165570"]
[BlackFideId "34275797"]
[WhiteElo "2415"]
[BlackElo "2501"]
[Result "0-1"]
[Round "10"]
[TimeControl "180+2"]
[Date "2023.07.25"]
[WhiteClock "0:00:39"]
[BlackClock "0:00:08"]
[Board "94"]

1. e4 {[%clk 0:03:00]}  c5 {[%clk 0:02:57]} 2. Nf3 {[%clk 0:02:59]}  Nc6 {[%clk 0:02:57]} 3. d4 {[%clk 0:02:47]}  cxd4 {[%clk 0:02:56]} 4. Nxd4 {[%clk 0:02:48]}  Nf6 {[%clk 0:02:56]} 5. Nc3 {[%clk 0:02:48]}  e5 {[%clk 0:02:56]} 6. Ndb5 {[%clk 0:02:48]}  d6 {[%clk 0:02:56]} 7. Bg5 {[%clk 0:02:48]}  a6 {[%clk 0:02:55]} 8. Na3 {[%clk 0:02:48]}  b5 {[%clk 0:02:55]} 9. Bxf6 {[%clk 0:02:49]}  gxf6 {[%clk 0:02:54]} 10. Nd5 {[%clk 0:02:49]}  f5 {[%clk 0:02:55]} 11. Bd3 {[%clk 0:02:49]}  Be6 {[%clk 0:02:54]} 12. Qh5 {[%clk 0:02:45]}  Rg8 {[%clk 0:02:23]} 13. g3 {[%clk 0:02:26]}  Rg5 {[%clk 0:02:20]} 14. Qd1 {[%clk 0:02:18]}  Bxd5 {[%clk 0:02:16]} 15. exd5 {[%clk 0:02:18]}  Ne7 {[%clk 0:02:17]} 16. c4 {[%clk 0:02:15]}  e4 {[%clk 0:02:10]} 17. Be2 {[%clk 0:02:08]}  Bg7 {[%clk 0:01:58]} 18. h4 {[%clk 0:02:05]}  Rg6 {[%clk 0:01:58]} 19. Rb1 {[%clk 0:02:04]}  e3 {[%clk 0:01:26]} 20. fxe3 {[%clk 0:01:56]}  Rxg3 {[%clk 0:01:21]} 21. Kf2 {[%clk 0:01:56]}  f4 {[%clk 0:01:21]} 22. exf4 {[%clk 0:01:48]}  Nf5 {[%clk 0:01:21]} 23. Qc2 {[%clk 0:01:37]}  Qb6+ {[%clk 0:01:04]} 24. c5 {[%clk 0:01:36]}  Bd4+ {[%clk 0:00:56]} 25. Ke1 {[%clk 0:01:35]}  Qa5+ {[%clk 0:00:47]} 26. b4 {[%clk 0:01:33]}  Qxa3 {[%clk 0:00:37]} 27. Qxf5 {[%clk 0:01:27]}  Qc3+ {[%clk 0:00:35]} 28. Kd1 {[%clk 0:01:26]}  Kf8 {[%clk 0:00:13]} 29. c6 {[%clk 0:01:23]}  Re8 {[%clk 0:00:11]} 30. Re1 {[%clk 0:01:04]}  Rxe2 {[%clk 0:00:10]} 31. Kxe2 {[%clk 0:00:39]}  Rg2+ {[%clk 0:00:08]} 0-1


[Site "https://www.chess.com"]

[Event "Titled Tuesday Blitz July 25 Early 2023"]
[White "Shubenkova, Veronika"]
[Black "Kayis, Gulcan Sena"]
[WhiteFideId "44124040"]
[BlackFideId "34553045"]
[WhiteElo "2498"]
[BlackElo "2375"]
[Result "1-0"]
[Round "10"]
[TimeControl "180+2"]
[Date "2023.07.25"]
[WhiteClock "0:01:49"]
[BlackClock "0:00:14"]
[Board "95"]

1. e4 {[%clk 0:03:00]}  e6 {[%clk 0:02:59]} 2. d4 {[%clk 0:03:00]}  d5 {[%clk 0:02:59]} 3. exd5 {[%clk 0:03:01]}  exd5 {[%clk 0:02:59]} 4. Nf3 {[%clk 0:03:02]}  Bd6 {[%clk 0:02:58]} 5. c3 {[%clk 0:03:03]}  Nc6 {[%clk 0:02:55]} 6. Bd3 {[%clk 0:03:04]}  Bg4 {[%clk 0:02:54]} 7. O-O {[%clk 0:03:04]}  Qd7 {[%clk 0:02:54]} 8. Nbd2 {[%clk 0:03:04]}  Nge7 {[%clk 0:02:53]} 9. a4 {[%clk 0:03:02]}  O-O-O {[%clk 0:02:52]} 10. b4 {[%clk 0:03:02]}  Ng6 {[%clk 0:02:49]} 11. Re1 {[%clk 0:02:51]}  Nf4 {[%clk 0:02:46]} 12. Bf1 {[%clk 0:02:51]}  Kb8 {[%clk 0:02:43]} 13. a5 {[%clk 0:02:49]}  f6 {[%clk 0:02:39]} 14. b5 {[%clk 0:02:49]}  Ne7 {[%clk 0:02:39]} 15. Ba3 {[%clk 0:02:46]}  h5 {[%clk 0:02:32]} 16. Qb3 {[%clk 0:02:42]}  h4 {[%clk 0:02:27]} 17. b6 {[%clk 0:02:40]}  cxb6 {[%clk 0:02:27]} 18. axb6 {[%clk 0:02:39]}  a6 {[%clk 0:02:27]} 19. Ra2 {[%clk 0:02:36]}  h3 {[%clk 0:02:13]} 20. g3 {[%clk 0:02:35]}  Ne6 {[%clk 0:02:12]} 21. Rea1 {[%clk 0:02:33]}  Qc6 {[%clk 0:01:40]} 22. Bxd6+ {[%clk 0:02:30]}  Rxd6 {[%clk 0:01:40]} 23. c4 {[%clk 0:02:23]}  dxc4 {[%clk 0:01:33]} 24. Nxc4 {[%clk 0:02:21]}  Nxd4 {[%clk 0:01:19]} 25. Nxd4 {[%clk 0:02:14]}  Rxd4 {[%clk 0:01:19]} 26. Na5 {[%clk 0:02:11]}  Qd5 {[%clk 0:01:18]} 27. Qa3 {[%clk 0:02:06]}  Nc8 {[%clk 0:01:12]} 28. Qc3 {[%clk 0:02:00]}  Re8 {[%clk 0:00:55]} 29. Qc7+ {[%clk 0:01:58]}  Ka8 {[%clk 0:00:55]} 30. Nxb7 {[%clk 0:01:55]}  Na7 {[%clk 0:00:16]} 31. Rxa6 {[%clk 0:01:50]}  Rd1 {[%clk 0:00:14]} 32. Rxa7# {[%clk 0:01:49]} 1-0


[Site "https://www.chess.com"]

[Event "Titled Tuesday Blitz July 25 Early 2023"]
[White "Ruge, Edison"]
[Black "Onufrienko, Vladislav"]
[WhiteFideId "4401000"]
[BlackFideId "13804332"]
[WhiteElo "2257"]
[BlackElo "2487"]
[Result "0-1"]
[Round "10"]
[TimeControl "180+2"]
[Date "2023.07.25"]
[WhiteClock "0:00:12"]
[BlackClock "0:00:06"]
[Board "100"]

1. e4 {[%clk 0:03:00]}  Nf6 {[%clk 0:02:56]} 2. e5 {[%clk 0:03:00]}  Nd5 {[%clk 0:02:56]} 3. c4 {[%clk 0:03:00]}  Nb6 {[%clk 0:02:56]} 4. c5 {[%clk 0:03:01]}  Nd5 {[%clk 0:02:57]} 5. Bc4 {[%clk 0:03:01]}  e6 {[%clk 0:02:57]} 6. Nc3 {[%clk 0:03:02]}  Nxc3 {[%clk 0:02:56]} 7. bxc3 {[%clk 0:03:00]}  Qg5 {[%clk 0:02:46]} 8. Nf3 {[%clk 0:02:45]}  Qxg2 {[%clk 0:02:45]} 9. Rg1 {[%clk 0:02:45]}  Qh3 {[%clk 0:02:45]} 10. d4 {[%clk 0:02:43]}  d6 {[%clk 0:02:25]} 11. Rg3 {[%clk 0:02:43]}  Qh5 {[%clk 0:02:24]} 12. Rg5 {[%clk 0:02:42]}  Qh3 {[%clk 0:02:19]} 13. Bf1 {[%clk 0:02:40]}  Qh6 {[%clk 0:02:15]} 14. Rg4 {[%clk 0:02:22]}  Qh5 {[%clk 0:02:11]} 15. Rh4 {[%clk 0:02:17]}  Qg6 {[%clk 0:02:06]} 16. Bd3 {[%clk 0:02:04]}  f5 {[%clk 0:02:02]} 17. exf6 {[%clk 0:01:56]}  Qxf6 {[%clk 0:02:02]} 18. Bg5 {[%clk 0:01:47]}  Qf7 {[%clk 0:02:01]} 19. Bxh7 {[%clk 0:01:38]}  dxc5 {[%clk 0:01:34]} 20. Qd3 {[%clk 0:01:36]}  c4 {[%clk 0:01:21]} 21. Qe4 {[%clk 0:01:34]}  Rxh7 {[%clk 0:01:12]} 22. Rxh7 {[%clk 0:01:28]}  Bd7 {[%clk 0:00:53]} 23. Ne5 {[%clk 0:01:24]}  Qf5 {[%clk 0:00:51]} 24. Qxf5 {[%clk 0:01:23]}  exf5 {[%clk 0:00:52]} 25. Rh8 {[%clk 0:01:23]}  Be6 {[%clk 0:00:47]} 26. Ng6 {[%clk 0:01:20]}  Nd7 {[%clk 0:00:45]} 27. O-O-O {[%clk 0:01:19]}  Kf7 {[%clk 0:00:43]} 28. Nxf8 {[%clk 0:01:11]}  Nxf8 {[%clk 0:00:44]} 29. d5 {[%clk 0:01:08]}  Bd7 {[%clk 0:00:42]} 30. Re1 {[%clk 0:01:07]}  Re8 {[%clk 0:00:35]} 31. Rxe8 {[%clk 0:01:02]}  Bxe8 {[%clk 0:00:36]} 32. Rh3 {[%clk 0:00:56]}  c6 {[%clk 0:00:31]} 33. d6 {[%clk 0:00:49]}  Ne6 {[%clk 0:00:28]} 34. Be3 {[%clk 0:00:47]}  b6 {[%clk 0:00:21]} 35. f4 {[%clk 0:00:47]}  c5 {[%clk 0:00:15]} 36. Rh8 {[%clk 0:00:46]}  a5 {[%clk 0:00:10]} 37. h4 {[%clk 0:00:47]}  b5 {[%clk 0:00:10]} 38. a3 {[%clk 0:00:45]}  b4 {[%clk 0:00:08]} 39. Kb2 {[%clk 0:00:43]}  b3 {[%clk 0:00:04]} 40. h5 {[%clk 0:00:35]}  a4 {[%clk 0:00:04]} 41. h6 {[%clk 0:00:35]}  gxh6 {[%clk 0:00:05]} 42. Rxh6 {[%clk 0:00:34]}  Bc6 {[%clk 0:00:06]} 43. Rh7+ {[%clk 0:00:33]}  Kf8 {[%clk 0:00:05]} 44. Re7 {[%clk 0:00:32]}  Bd5 {[%clk 0:00:05]} 45. Ra7 {[%clk 0:00:30]}  Ke8 {[%clk 0:00:05]} 46. Rxa4 {[%clk 0:00:29]}  Kd7 {[%clk 0:00:05]} 47. Ra6 {[%clk 0:00:29]}  Bc6 {[%clk 0:00:05]} 48. Ra4 {[%clk 0:00:24]}  Bxa4 {[%clk 0:00:05]} 49. Kc1 {[%clk 0:00:23]}  Kxd6 {[%clk 0:00:05]} 50. Kb2 {[%clk 0:00:22]}  Kd5 {[%clk 0:00:05]} 51. Kc1 {[%clk 0:00:19]}  Ke4 {[%clk 0:00:06]} 52. Bd2 {[%clk 0:00:19]}  Nxf4 {[%clk 0:00:06]} 53. Kb2 {[%clk 0:00:12]}  Nd5 {[%clk 0:00:06]} 0-1


[Site "https://www.chess.com"]